fUSD/lending_fUSD_20260617
["ID","MTS","AMOUNT","RATE_DAILY","PERIOD"]
[425344768,1781704240000,-160.54905192,0.00028953,30]
[425344773,1781704240000,-153.0,0.00028953,30]
[425344776,1781704240000,-155.0,0.00028953,30]
[425344778,1781704240000,-889.57,0.00028964,2]
[425344777,1781704240000,-250.12,0.00028964,2]
[425344775,1781704240000,-157.0,0.00028953,30]
[425344774,1781704240000,-156.0,0.00028953,30]
[425344779,1781704240000,-249.94,0.00028964,2]
[425344780,1781704240000,-888.49,0.00028964,2]
[425344782,1781704240000,-157.7,0.00028978,30]
[425344811,1781704240000,-157.82,0.00029201,2]
[425344799,1781704240000,-168.73277977,0.00029126,7]
[425344812,1781704240000,-157.7,0.00029201,2]
[425344840,1781704240000,-426.66196277,0.00029695,7]
[425344846,1781704240000,-160.40783354,0.00029695,5]
[425344842,1781704240000,-169.10662874,0.00029695,7]
[425344844,1781704240000,-369.34764417,0.00029695,7]
[425344859,1781704240000,-171.91201776,0.00029695,7]
[425344852,1781704240000,-154.86802151,0.00029695,7]
[425344849,1781704240000,-423.21546472,0.00029695,7]
[425344851,1781704240000,-177.29685804,0.00029695,5]
[425344850,1781704240000,-357.97829756,0.00029695,2]
[425344853,1781704240000,-227.38575425,0.00029695,7]
[425344854,1781704240000,-430.55290807,0.00029695,7]
[425344855,1781704240000,-167.38564146,0.00029695,7]
[425344856,1781704240000,-378.55383114,0.00029695,7]
[425344857,1781704240000,-395.75489836,0.00029695,7]
[425344858,1781704240000,-167.75958112,0.00029695,7]
[425344860,1781704240000,-173.21498481,0.00029695,7]
[425344861,1781704240000,-356.23722584,0.00029695,7]
[425344863,1781704240000,-433.76861676,0.00029695,7]
[425344862,1781704240000,-309.57406745,0.00029695,7]
[425344867,1781704240000,-177.08161766,0.00029695,7]
[425344866,1781704240000,-165.36900404,0.00029695,7]
[425344865,1781704240000,-190.01843339,0.00029695,7]
[425344868,1781704240000,-157.87178721,0.00029695,7]
[425344864,1781704240000,-191.86881566,0.00029695,7]
[425344807,1781704240000,-250.0,0.00029156,12]
[425344843,1781704240000,-165.64447569,0.00029695,7]
[425344838,1781704240000,-311.87508903,0.00029695,7]
[425344848,1781704240000,-316.66939815,0.00029695,7]
[425344845,1781704240000,-162.51514701,0.00029695,7]
[425344814,1781704240000,-157.7,0.00029232,7]
[425344817,1781704240000,-889.57,0.00029299,7]
[425344816,1781704240000,-250.12,0.00029299,7]
[425344818,1781704240000,-249.94,0.00029299,7]
[425344847,1781704240000,-160.99104066,0.00029695,7]
[425344824,1781704240000,-578.20924308,0.0002955,2]
[425344822,1781704240000,-500.0,0.00029533,2]
[425344819,1781704240000,-888.49,0.00029299,7]
[425344821,1781704240000,-813.19,0.00029504,2]
[425344823,1781704240000,-150.0,0.00029534,2]
[425344815,1781704240000,-156.51325562,0.00029265,2]
[425344825,1781704240000,-500.0,0.0002955,2]
[425344836,1781704240000,-399.42355912,0.00029687,7]
[425344820,1781704240000,-168.28,0.00029383,7]
[425344828,1781704240000,-646.65982734,0.0002955,2]
[425344826,1781704240000,-151.0,0.0002955,2]
[425344841,1781704240000,-247.21875952,0.00029695,7]
[425344839,1781704240000,-434.04823843,0.00029695,7]
[425344835,1781704240000,-396.52613447,0.00029687,7]
[425344834,1781704240000,-173.67271354,0.00029687,7]
[425344832,1781704240000,-500.0,0.00029654,4]
[425344837,1781704240000,-336.63690439,0.00029688,7]
[425344833,1781704240000,-168.36671035,0.00029687,7]
[425344830,1781704240000,-500.0,0.0002955,2]
[425344827,1781704240000,-500.0,0.0002955,2]
[425344829,1781704240000,-500.0,0.0002955,2]
[425344831,1781704240000,-151.0,0.00029605,2]
[425344900,1781704241000,-500.0,0.00029799,2]
[425344874,1781704241000,-398.73026994,0.00029695,7]
[425344894,1781704241000,-152.05845054,0.000297,2]
[425344895,1781704241000,-2069.37750209,0.000297,2]
[425344880,1781704241000,-177.0146178,0.00029695,7]
[425344876,1781704241000,-159.09428572,0.00029695,7]
[425344878,1781704241000,-167.5099656,0.00029695,7]
[425344875,1781704241000,-211.33025571,0.00029695,7]
[425344871,1781704241000,-164.55370188,0.00029695,7]
[425344888,1781704241000,-160.69148491,0.00029695,7]
[425344886,1781704241000,-173.01626787,0.00029695,7]
[425344884,1781704241000,-398.54967103,0.00029695,7]
[425344882,1781704241000,-165.65618183,0.00029695,7]
[425344873,1781704241000,-365.64060062,0.00029695,7]
[425344870,1781704241000,-177.12696982,0.00029695,7]
[425344869,1781704241000,-170.17067009,0.00029695,7]
[425344898,1781704241000,-7169.8409613,0.00029781,2]
[425344872,1781704241000,-154.24871349,0.00029695,2]
[425344904,1781704241000,-500.0,0.00029799,2]
[425344916,1781704241000,-12456.99972,0.000298,2]
[425344897,1781704241000,-5566.6591881,0.00029781,2]
[425344915,1781704241000,-25622.25151895,0.000298,2]
[425344914,1781704241000,-6977.74848105,0.00027397,10]
[425344913,1781704241000,-0.58096363,0.00027397,10]
[425344912,1781704241000,-1122.21055532,0.00027397,10]
[425344911,1781704241000,-636.26266586,0.000298,2]
[425344910,1781704241000,-3486.72775957,0.000298,2]
[425344909,1781704241000,-781.25176462,0.000298,2]
[425344907,1781704241000,-127621.73695056,0.000298,2]
[425344908,1781704241000,-1801.1575659,0.000298,2]
[425344906,1781704241000,-500.0,0.00029799,2]
[425344901,1781704241000,-500.0,0.00029799,2]
[425344902,1781704241000,-500.0,0.00029799,2]
[425344891,1781704241000,-2048.366,0.000297,2]
[425344903,1781704241000,-500.0,0.00029799,2]
[425344893,1781704241000,-1642.0703,0.000297,2]
[425344896,1781704241000,-5036.7428111,0.00029781,2]
[425344905,1781704241000,-4000.0,0.00029799,3]
[425344899,1781704241000,-500.0,0.00029799,2]
[425344926,1781704243000,-309.66,0.00021678,2]
[425344925,1781704243000,-309.66,0.00019613,2]
[425344929,1781704243000,-250.05,0.0002863,30]
[425344928,1781704243000,-168.28,0.0002863,30]
[425344930,1781704243000,-0.8597947,0.0002863,30]
[425344927,1781704243000,-157.82,0.00028628,2]
[425344946,1781704245000,-1400.0,0.00027397,2]
[425344963,1781704246000,-250.05,0.00029132,30]
[425344958,1781704246000,-157.82,0.0002885,7]
[425344959,1781704246000,-157.82,0.00028882,30]
[425344960,1781704246000,-157.82,0.00028914,2]
[425344956,1781704246000,-434.33056623,0.00028797,7]
[425344954,1781704246000,-250.05,0.00028797,7]
[425344952,1781704246000,-157.82,0.00028755,7]
[425344950,1781704246000,-157.82,0.00028691,30]
[425344955,1781704246000,-451.27943377,0.00028797,7]
[425344951,1781704246000,-157.82,0.00028723,2]
[425344947,1781704246000,-100.0,0.00027397,2]
[425344949,1781704246000,-157.82,0.00028659,7]
[425344948,1781704246000,-884.7502053,0.0002863,30]
[425344953,1781704246000,-157.82,0.00028787,30]
[425344957,1781704246000,-157.82,0.00028819,2]
[425344961,1781704246000,-250.05,0.00028964,2]
[425344962,1781704246000,-885.61,0.00028964,2]
[425344980,1781704246000,-269293.08200982,0.000298,2]
[425344978,1781704246000,-2006.1321038,0.000298,2]
[425344979,1781704246000,-2796.3387673,0.000298,2]
[425344976,1781704246000,-15899.0000007,0.000298,2]
[425344975,1781704246000,-258387.10083076,0.000298,2]
[425344969,1781704246000,-885.61,0.00029467,2]
[425344977,1781704246000,-648.1286128,0.000298,2]
[425344964,1781704246000,-885.61,0.00029132,30]
[425344970,1781704246000,-250.05,0.00029634,30]
[425344965,1781704246000,-250.05,0.00029299,7]
[425344966,1781704246000,-885.61,0.00029299,7]
[425344968,1781704246000,-250.05,0.00029467,2]
[425344974,1781704246000,-911020.24258579,0.000298,2]
[425344967,1781704246000,-168.28,0.00029383,7]
[425344973,1781704246000,-490.55401966,0.000297,2]
[425344971,1781704246000,-885.61,0.00029634,30]
[425344982,1781704294000,154.03016329,0.0003,120]
[425344983,1781704326000,244.558186,0.000137,2]
[425344984,1781704333000,252.37,0.00026416,120]
[425344990,1781704363000,500.0,0.00029799,120]
[425344989,1781704363000,500.0,0.00029799,120]
[425344988,1781704363000,500.0,0.00029799,120]
[425344987,1781704363000,500.0,0.00029699,120]
[425344991,1781704364000,500.0,0.00029799,120]
[425344992,1781704364000,500.0,0.00029799,120]
[425344993,1781704394000,152.0,0.00030104,120]
[425344999,1781704437000,500.0,0.00029799,120]
[425344997,1781704437000,500.0,0.00029799,120]
[425344996,1781704437000,500.0,0.00029799,120]
[425344995,1781704437000,500.0,0.00029799,120]
[425344994,1781704437000,500.0,0.00028999,120]
[425344998,1781704437000,500.0,0.00029799,120]
[425345002,1781704438000,500.0,0.00029999,120]
[425345001,1781704438000,500.0,0.00029799,120]
[425345000,1781704438000,500.0,0.00029799,120]
[425345003,1781704453000,364.92,0.00028797,120]
[425345010,1781704622000,250.0,0.00014,2]
[425345014,1781704653000,500.0,0.00029799,120]
[425345013,1781704653000,500.0,0.00029799,120]
[425345012,1781704653000,500.0,0.00029699,120]
[425345015,1781704654000,500.0,0.00029799,120]
[425345017,1781704654000,500.0,0.00029799,120]
[425345016,1781704654000,500.0,0.00029799,120]
[425345020,1781704655000,500.0,0.00029999,120]
[425345019,1781704655000,500.0,0.00029799,120]
[425345018,1781704655000,500.0,0.00029799,120]
[425345023,1781704671000,290.0,0.00018,120]
[425345024,1781704676000,500.0,0.00029699,120]
[425345026,1781704677000,500.0,0.00029799,120]
[425345025,1781704677000,500.0,0.00029799,120]
[425345027,1781704678000,500.0,0.00029799,120]
[425345028,1781704678000,500.0,0.00029799,120]
[425345031,1781704715000,377.78748729,0.00029799,120]
[425345030,1781704715000,500.0,0.00028999,120]
[425345033,1781704827000,500.0,0.00029799,120]
[425345032,1781704827000,500.0,0.00029699,120]
[425345036,1781704828000,500.0,0.00029799,120]
[425345035,1781704828000,500.0,0.00029799,120]
[425345034,1781704828000,500.0,0.00029799,120]
[425345037,1781704830000,500.0,0.00029799,120]
[425345038,1781704830000,500.0,0.00029799,120]
[425345040,1781704830000,500.0,0.00029799,120]
[425345041,1781704830000,500.0,0.00029999,120]
[425345039,1781704830000,1000.0,0.0003,120]
[425345048,1781704865000,500.0,0.00029799,120]
[425345047,1781704865000,500.0,0.00029799,120]
[425345046,1781704865000,500.0,0.00029799,120]
[425345045,1781704865000,500.0,0.00029799,120]
[425345044,1781704865000,500.0,0.00029699,120]
[425345051,1781704866000,500.0,0.00029799,120]
[425345050,1781704866000,500.0,0.00029799,120]
[425345049,1781704866000,500.0,0.00029799,120]
[425345052,1781704867000,500.0,0.00029999,120]
[425345053,1781704969000,151.0,0.00014442,2]
[425345054,1781704991000,152.0,0.00030012,120]
[425345055,1781705030000,151.83426992,0.00028796,120]
[425345057,1781705126000,183.4413965,0.00030137,120]
[425345059,1781705150000,-543.43750627,0.00014898,2]
[425345058,1781705150000,-600.0,0.00014851,2]
[425345062,1781705216000,500.0,0.00030137,120]
[425345063,1781705225000,-431.11226027,0.00014899,2]
[425345064,1781705226000,500.0,0.00030137,120]
[425345065,1781705229000,-68.88773973,0.00014899,2]
[425345066,1781705229000,-185.91228531,0.00014899,2]
[425345067,1781705271000,200.0,0.00014245,2]
[425345068,1781705290000,152.0,0.00030009,120]
[425345069,1781705369000,150.0,0.000142,2]
[425345070,1781705378000,150.0,0.000143,2]
[425345072,1781705379000,-500.0,0.00014899,2]
[425345074,1781705379000,-500.0,0.00014899,2]
[425345073,1781705379000,-500.0,0.00014899,2]
[425345071,1781705379000,-314.08771469,0.00014899,2]
[425345075,1781705379000,-500.0,0.00014899,2]
[425345076,1781705379000,-157.15604439,0.00014899,2]
[425345078,1781705379000,-386.3749899,0.00014899,2]
[425345077,1781705379000,-74.64787832,0.00014899,2]
[425345079,1781705389000,150.0,0.000145,2]
[425345102,1781705431000,-255.35044126,0.00014988,2]
[425345089,1781705431000,-38.97713178,0.00014899,2]
[425345091,1781705431000,-549.69666784,0.00014899,2]
[425345090,1781705431000,-500.0,0.00014899,2]
[425345092,1781705431000,-1692.753373,0.000149,2]
[425345099,1781705431000,-500.0,0.00014988,2]
[425345100,1781705431000,-192.41151631,0.00014988,2]
[425345101,1781705431000,-500.0,0.00014988,2]
[425345094,1781705431000,-177.0540663,0.00014925,2]
[425345097,1781705431000,-364.78634465,0.00014988,2]
[425345096,1781705431000,-150.0,0.00014987,2]
[425345098,1781705431000,-500.0,0.00014988,2]
[425345095,1781705431000,-2155.6166319,0.00014948,2]
[425345103,1781705431000,-221.75520613,0.00014988,2]
[425345105,1781705431000,-472.70345971,0.00014988,2]
[425345104,1781705431000,-500.0,0.00014988,2]
[425345093,1781705431000,-176.71135637,0.00014925,2]
[425345147,1781705432000,-184.73,0.00015527,2]
[425345143,1781705432000,-1268.96,0.0001542,2]
[425345146,1781705432000,-150.0,0.000155,2]
[425345144,1781705432000,-200.0,0.00015421,2]
[425345141,1781705432000,-1806.66,0.00015352,2]
[425345138,1781705432000,-813.19,0.00015324,2]
[425345152,1781705432000,-813.19,0.0001609,2]
[425345136,1781705432000,-291.93,0.00015305,2]
[425345139,1781705432000,-283.08,0.00015329,2]
[425345134,1781705432000,-5402.01,0.0001524,2]
[425345142,1781705432000,-656.89,0.0001542,2]
[425345149,1781705432000,-813.19,0.00015707,2]
[425345160,1781705432000,-310.0,0.00016171,2]
[425345150,1781705432000,-200.0,0.00015847,2]
[425345148,1781705432000,-150.0,0.00015644,2]
[425345151,1781705432000,-910.12,0.00015847,2]
[425345153,1781705432000,-151.0,0.0001617,2]
[425345154,1781705432000,-312.0,0.0001617,2]
[425345164,1781705432000,-309.0,0.00016172,2]
[425345155,1781705432000,-150.0,0.0001617,2]
[425345156,1781705432000,-317.0,0.00016171,2]
[425345159,1781705432000,-151.0,0.00016171,2]
[425345158,1781705432000,-153.0,0.00016171,2]
[425345162,1781705432000,-312.0,0.00016172,2]
[425345137,1781705432000,-500.0,0.00015322,2]
[425345145,1781705432000,-150.0,0.00015495,2]
[425345140,1781705432000,-150.0,0.00015346,2]
[425345119,1781705432000,-500.0,0.00014999,2]
[425345132,1781705432000,-150.0,0.00015197,2]
[425345163,1781705432000,-320.0,0.00016172,2]
[425345106,1781705432000,-500.0,0.00014988,2]
[425345108,1781705432000,-500.0,0.00014988,2]
[425345107,1781705432000,-500.0,0.00014988,2]
[425345109,1781705432000,-295.20825506,0.00014988,2]
[425345110,1781705432000,-226.32452908,0.00014988,2]
[425345116,1781705432000,-1000.0,0.00014999,2]
[425345112,1781705432000,-1000.0,0.00014999,2]
[425345115,1781705432000,-1000.0,0.00014999,2]
[425345111,1781705432000,-64600.09514358,0.00014989,2]
[425345113,1781705432000,-1000.0,0.00014999,2]
[425345114,1781705432000,-1000.0,0.00014999,2]
[425345131,1781705432000,-150.0,0.000151,2]
[425345118,1781705432000,-500.0,0.00014999,2]
[425345117,1781705432000,-500.0,0.00014999,2]
[425345125,1781705432000,-321.0,0.00015,2]
[425345120,1781705432000,-500.0,0.00014999,2]
[425345122,1781705432000,-500.0,0.00014999,2]
[425345123,1781705432000,-326.55931188,0.00014999,2]
[425345121,1781705432000,-500.0,0.00014999,2]
[425345126,1781705432000,-318.0,0.00015,2]
[425345124,1781705432000,-66476.0364233,0.00015,2]
[425345129,1781705432000,-101100.36725668,0.00015,2]
[425345130,1781705432000,-150.0,0.00015048,2]
[425345135,1781705432000,-500.0,0.00015305,2]
[425345133,1781705432000,-150.0,0.000152,2]
[425345127,1781705432000,-153.0,0.00015,2]
[425345157,1781705432000,-321.0,0.00016171,2]
[425345128,1781705432000,-66296.316266,0.00015,2]
[425345176,1781705432000,-151.0,0.00016306,2]
[425345192,1781705432000,-500.0,0.00016438,2]
[425345195,1781705432000,-500.0,0.00016438,2]
[425345197,1781705432000,-500.0,0.00016438,2]
[425345200,1781705432000,-500.0,0.00016438,2]
[425345202,1781705432000,-438.98923425,0.00016438,2]
[425345204,1781705432000,-500.0,0.00016438,2]
[425345203,1781705432000,-500.0,0.00016438,2]
[425345205,1781705432000,-500.0,0.00016438,2]
[425345206,1781705432000,-500.0,0.00016438,2]
[425345208,1781705432000,-500.0,0.00016438,2]
[425345209,1781705432000,-500.0,0.00016438,2]
[425345210,1781705432000,-500.0,0.00016438,2]
[425345196,1781705432000,-500.0,0.00016438,2]
[425345222,1781705432000,-813.19,0.00016473,2]
[425345212,1781705432000,-500.0,0.00016438,2]
[425345211,1781705432000,-500.0,0.00016438,2]
[425345213,1781705432000,-500.0,0.00016438,2]
[425345218,1781705432000,-500.0,0.00016438,2]
[425345221,1781705432000,-500.0,0.00016438,2]
[425345219,1781705432000,-490.0,0.00016438,2]
[425345215,1781705432000,-500.0,0.00016438,2]
[425345214,1781705432000,-500.0,0.00016438,2]
[425345216,1781705432000,-500.0,0.00016438,2]
[425345217,1781705432000,-500.0,0.00016438,2]
[425345220,1781705432000,-500.0,0.00016438,2]
[425345161,1781705432000,-151.0,0.00016171,2]
[425345201,1781705432000,-500.0,0.00016438,2]
[425345194,1781705432000,-500.0,0.00016438,2]
[425345207,1781705432000,-500.0,0.00016438,2]
[425345193,1781705432000,-500.0,0.00016438,2]
[425345166,1781705432000,-153.0,0.00016179,2]
[425345175,1781705432000,-500.0,0.00016283,2]
[425345174,1781705432000,-300.06717808,0.00016283,2]
[425345167,1781705432000,-151.0,0.00016179,2]
[425345165,1781705432000,-151.0,0.00016173,2]
[425345191,1781705432000,-500.0,0.00016438,2]
[425345177,1781705432000,-164.4,0.00016323,2]
[425345171,1781705432000,-600.0,0.00016283,2]
[425345169,1781705432000,-175.00638974,0.00016256,2]
[425345168,1781705432000,-151.0,0.00016204,2]
[425345173,1781705432000,-252.02763914,0.00016283,2]
[425345172,1781705432000,-208.98352537,0.00016283,2]
[425345178,1781705432000,-6561.79994935,0.00016338,2]
[425345179,1781705432000,-300.0,0.00016388,2]
[425345170,1781705432000,-193.0,0.00016283,2]
[425345182,1781705432000,-390.1019425,0.00016389,2]
[425345181,1781705432000,-250.0,0.00016389,2]
[425345190,1781705432000,-500.0,0.00016438,2]
[425345189,1781705432000,-500.0,0.00016438,2]
[425345198,1781705432000,-500.0,0.00016438,2]
[425345184,1781705432000,-202.6,0.00016438,2]
[425345187,1781705432000,-500.0,0.00016438,2]
[425345199,1781705432000,-500.0,0.00016438,2]
[425345180,1781705432000,-600.0,0.00016389,2]
[425345186,1781705432000,-500.0,0.00016438,2]
[425345185,1781705432000,-500.0,0.00016438,2]
[425345183,1781705432000,-250.0,0.00016389,2]
[425345188,1781705432000,-500.0,0.00016438,2]
[425345237,1781705433000,-151.0,0.00017893,2]
[425345233,1781705433000,-753.33556377,0.00017796,2]
[425345245,1781705433000,-500.0,0.00017895,2]
[425345236,1781705433000,-151.0,0.00017893,2]
[425345242,1781705433000,-293.59857466,0.00017895,2]
[425345234,1781705433000,-492.64325511,0.00017796,2]
[425345235,1781705433000,-200.75269713,0.00017886,2]
[425345226,1781705433000,-3619.73,0.00016849,2]
[425345225,1781705433000,-2500.0,0.00016715,2]
[425345228,1781705433000,-2155.61663181,0.00016929,2]
[425345231,1781705433000,-164.4,0.0001767,2]
[425345229,1781705433000,-731.42,0.0001699,2]
[425345232,1781705433000,-2195.62675399,0.00017796,2]
[425345227,1781705433000,-813.19,0.00016856,2]
[425345223,1781705433000,-181.63,0.00016566,2]
[425345224,1781705433000,-151.0,0.00016713,2]
[425345244,1781705433000,-340.84845707,0.00017895,2]
[425345230,1781705433000,-291.93,0.00017218,2]
[425345243,1781705433000,-500.0,0.00017895,2]
[425345254,1781705433000,-500.0,0.00017895,2]
[425345240,1781705433000,-500.0,0.00017895,2]
[425345238,1781705433000,-151.0,0.00017893,2]
[425345260,1781705433000,-955.88505399,0.00017896,2]
[425345261,1781705433000,-911.97378408,0.00017896,2]
[425345259,1781705433000,-22807.51280568,0.00017896,2]
[425345258,1781705433000,-3000.0,0.00017895,2]
[425345257,1781705433000,-163.44,0.00017895,2]
[425345246,1781705433000,-500.0,0.00017895,2]
[425345255,1781705433000,-500.0,0.00017895,2]
[425345248,1781705433000,-500.0,0.00017895,2]
[425345262,1781705433000,-1989.21459,0.00017896,2]
[425345249,1781705433000,-500.0,0.00017895,2]
[425345250,1781705433000,-500.0,0.00017895,2]
[425345247,1781705433000,-500.0,0.00017895,2]
[425345251,1781705433000,-500.0,0.00017895,2]
[425345252,1781705433000,-500.0,0.00017895,2]
[425345253,1781705433000,-500.0,0.00017895,2]
[425345241,1781705433000,-500.0,0.00017895,2]
[425345256,1781705433000,-500.0,0.00017895,2]
[425345239,1781705433000,-500.0,0.00017895,2]
[425345304,1781705438000,-303.08,0.00020352,2]
[425345287,1781705438000,-41833.90425142,0.000194,2]
[425345295,1781705438000,-1161.09999809,0.0002,2]
[425345288,1781705438000,-184.73,0.00019408,2]
[425345296,1781705438000,-151.0,0.0002,2]
[425345293,1781705438000,-165.326255,0.0002,2]
[425345292,1781705438000,-239.0,0.0002,2]
[425345302,1781705438000,-461.8446314,0.00020256,7]
[425345291,1781705438000,-151.0,0.0002,2]
[425345299,1781705438000,-303.08,0.00020041,2]
[425345298,1781705438000,-238.0,0.0002,2]
[425345301,1781705438000,-303.08,0.00020217,2]
[425345300,1781705438000,-303.08,0.00020136,2]
[425345303,1781705438000,-303.08,0.00020288,2]
[425345290,1781705438000,-6561.79994931,0.00019991,2]
[425345297,1781705438000,-201.0,0.0002,2]
[425345289,1781705438000,-303.08,0.00019916,2]
[425345276,1781705438000,-164.4,0.00019017,2]
[425345284,1781705438000,-500.0,0.00019178,2]
[425345306,1781705438000,-303.08,0.00020411,2]
[425345269,1781705438000,-420.5113501,0.00017966,2]
[425345268,1781705438000,-1308643.87426625,0.00017896,2]
[425345270,1781705438000,-500.0,0.00018066,2]
[425345271,1781705438000,-6561.79994931,0.00018165,2]
[425345272,1781705438000,-202.6,0.0001841,2]
[425345273,1781705438000,-152.0,0.00018512,2]
[425345275,1781705438000,-2155.61663181,0.0001891,2]
[425345274,1781705438000,-1500.0,0.00018661,2]
[425345285,1781705438000,-1291.61620941,0.00019209,2]
[425345278,1781705438000,-500.0,0.00019178,2]
[425345280,1781705438000,-500.0,0.00019178,2]
[425345279,1781705438000,-500.0,0.00019178,2]
[425345282,1781705438000,-500.0,0.00019178,2]
[425345277,1781705438000,-291.93,0.00019131,2]
[425345281,1781705438000,-500.0,0.00019178,2]
[425345283,1781705438000,-500.0,0.00019178,2]
[425345286,1781705438000,-500.0,0.00019399,2]
[425345307,1781705438000,-303.08,0.00020466,2]
[425345310,1781705438000,-203.220419,0.00020532,2]
[425345309,1781705438000,-193.180596,0.00020532,2]
[425345342,1781705438000,-303.08,0.00020995,2]
[425345348,1781705438000,-303.08,0.00021027,2]
[425345340,1781705438000,-499.99,0.00020951,2]
[425345350,1781705438000,-303.08,0.00021059,2]
[425345344,1781705438000,-239.0,0.00021,2]
[425345343,1781705438000,-151.0,0.00021,2]
[425345345,1781705438000,-151.0,0.00021,2]
[425345349,1781705438000,-291.93,0.00021044,2]
[425345346,1781705438000,-201.0,0.00021,2]
[425345351,1781705438000,-1309.61,0.00021076,2]
[425345353,1781705438000,-303.08,0.0002112,2]
[425345352,1781705438000,-303.08,0.0002109,2]
[425345357,1781705438000,-303.08,0.00021208,2]
[425345355,1781705438000,-303.08,0.0002118,2]
[425345356,1781705438000,-179.72945911,0.000212,2]
[425345305,1781705438000,-202.6,0.00020381,2]
[425345347,1781705438000,-238.0,0.00021,2]
[425345341,1781705438000,-303.08,0.00020962,2]
[425345354,1781705438000,-303.08,0.0002115,2]
[425345336,1781705438000,-9999.99,0.00020951,2]
[425345338,1781705438000,-9999.99,0.00020951,2]
[425345320,1781705438000,-303.08,0.00020781,2]
[425345308,1781705438000,-303.08,0.00020518,2]
[425345322,1781705438000,-303.08,0.00020819,2]
[425345314,1781705438000,-19528.68829696,0.000207,2]
[425345317,1781705438000,-303.08,0.00020742,2]
[425345315,1781705438000,-303.08,0.00020701,2]
[425345311,1781705438000,-303.08,0.00020567,2]
[425345312,1781705438000,-303.08,0.00020614,2]
[425345326,1781705438000,-2155.61663181,0.00020891,2]
[425345328,1781705438000,-303.08,0.00020892,2]
[425345330,1781705438000,-303.08,0.00020927,2]
[425345324,1781705438000,-303.08,0.00020856,2]
[425345335,1781705438000,-1583.69,0.00020951,2]
[425345337,1781705438000,-299.99,0.00020951,7]
[425345333,1781705438000,-2154.2,0.00020951,2]
[425345313,1781705438000,-303.08,0.00020658,2]
[425345339,1781705438000,-1106.89,0.00020951,2]
[425345374,1781705439000,-179.72945911,0.000216,2]
[425345375,1781705439000,-303.08,0.00021612,2]
[425345376,1781705439000,-303.08,0.00021635,2]
[425345377,1781705439000,-303.08,0.00021657,2]
[425345382,1781705439000,-999.99,0.00021757,2]
[425345380,1781705439000,-1309.63,0.00021714,2]
[425345378,1781705439000,-303.08,0.00021679,2]
[425345381,1781705439000,-814.74867399,0.00021756,7]
[425345383,1781705439000,-354.02,0.00021757,2]
[425345373,1781705439000,-303.08,0.0002159,2]
[425345384,1781705439000,-436.06,0.00021757,2]
[425345379,1781705439000,-1309.61,0.00021681,2]
[425345372,1781705439000,-303.08,0.00021566,2]
[425345365,1781705439000,-179.72945911,0.000214,2]
[425345371,1781705439000,-303.08,0.00021543,2]
[425345370,1781705439000,-303.08,0.00021519,2]
[425345369,1781705439000,-303.08,0.00021495,2]
[425345362,1781705439000,-303.08,0.00021345,2]
[425345366,1781705439000,-303.08,0.00021422,2]